[Event "*** Titled Tuesday Blitz"]
[Site "Chess.com"]
[Date "2021.04.06"]
[Round "10"]
[White "ErikRonka"]
[Black "MaevskiyNikolay"]
[Result "0-1"]
[WhiteElo "2458"]
[BlackElo "2570"]
[TimeControl "180+1"]
[EndTime "11:57:58 PDT"]
[Termination "MaevskiyNikolay won by checkmate"]

1. d4 {[%clk 0:03:00.9]} 1... d5 {[%clk 0:02:59.8]} 2. c4 {[%clk 0:03:01.1]}
2... Nc6 {[%clk 0:03:00.1]} 3. Nc3 {[%clk 0:02:57]} 3... dxc4 {[%clk 0:03:00.2]}
4. d5 {[%clk 0:02:57.9]} 4... Ne5 {[%clk 0:02:59.8]} 5. Qd4 {[%clk 0:02:52.1]}
5... Ng6 {[%clk 0:02:57.5]} 6. Nf3 {[%clk 0:02:38.9]} 6... e6 {[%clk 0:02:41.5]}
7. e4 {[%clk 0:02:18.4]} 7... exd5 {[%clk 0:02:41]} 8. Qxd5 {[%clk 0:01:54.8]}
8... Qxd5 {[%clk 0:02:06.4]} 9. Nxd5 {[%clk 0:01:54.5]} 9... Bd6 {[%clk
0:02:05.8]} 10. Bxc4 {[%clk 0:01:48.4]} 10... c6 {[%clk 0:02:02.5]} 11. Nc3
{[%clk 0:01:42.5]} 11... Bg4 {[%clk 0:01:56.1]} 12. Ng5 {[%clk 0:01:30.7]} 12...
Ne5 {[%clk 0:01:55.6]} 13. Be2 {[%clk 0:01:26.1]} 13... Bxe2 {[%clk 0:01:50]}
14. Kxe2 {[%clk 0:01:24.9]} 14... h6 {[%clk 0:01:47.5]} 15. Nf3 {[%clk
0:01:10.3]} 15... O-O-O {[%clk 0:01:38]} 16. Be3 {[%clk 0:00:53.3]} 16... Nc4
{[%clk 0:01:27.1]} 17. Bxa7 {[%clk 0:00:52.3]} 17... Nxb2 {[%clk 0:01:21.9]} 18.
Rab1 {[%clk 0:00:49.8]} 18... Nc4 {[%clk 0:01:19.3]} 19. Rhc1 {[%clk 0:00:46.5]}
19... Na3 {[%clk 0:01:00.2]} 20. Rb3 {[%clk 0:00:38.2]} 20... f6 {[%clk
0:00:59.5]} 21. Na4 {[%clk 0:00:30.4]} 21... Kd7 {[%clk 0:00:42.6]} 22. Bb6
{[%clk 0:00:22.1]} 22... Re8 {[%clk 0:00:37.6]} 23. Bc5 {[%clk 0:00:17.4]} 23...
Nb5 {[%clk 0:00:33]} 24. Bxd6 {[%clk 0:00:15.2]} 24... Rxe4+ {[%clk 0:00:30.1]}
25. Kf1 {[%clk 0:00:13.3]} 25... Rxa4 {[%clk 0:00:29.7]} 26. Bc5 {[%clk
0:00:11.4]} 26... Ne7 {[%clk 0:00:26.2]} 27. Rd1+ {[%clk 0:00:11.2]} 27... Nd5
{[%clk 0:00:26.3]} 28. g3 {[%clk 0:00:09.1]} 28... Ke6 {[%clk 0:00:22.3]} 29.
Nh4 {[%clk 0:00:08.9]} 29... Rxa2 {[%clk 0:00:20.3]} 30. Re1+ {[%clk 0:00:08.3]}
30... Kf7 {[%clk 0:00:19.6]} 31. Rf3 {[%clk 0:00:08]} 31... Re8 {[%clk
0:00:18.1]} 32. Rd1 {[%clk 0:00:07.4]} 32... Re4 {[%clk 0:00:16.7]} 33. Nf5
{[%clk 0:00:06.8]} 33... Rc4 {[%clk 0:00:16.2]} 34. Be3 {[%clk 0:00:05.1]} 34...
Rcc2 {[%clk 0:00:15.6]} 35. Bd4 {[%clk 0:00:03.9]} 35... h5 {[%clk 0:00:13.3]}
36. h4 {[%clk 0:00:03.5]} 36... Rd2 {[%clk 0:00:12.6]} 37. Rxd2 {[%clk 0:00:03]}
37... Rxd2 {[%clk 0:00:12.7]} 38. Bc5 {[%clk 0:00:03.9]} 38... Rc2 {[%clk
0:00:12.5]} 39. Bb6 {[%clk 0:00:03.5]} 39... Rc1+ {[%clk 0:00:12.3]} 40. Kg2
{[%clk 0:00:03.2]} 40... g6 {[%clk 0:00:12]} 41. Nh6+ {[%clk 0:00:02.1]} 41...
Kg7 {[%clk 0:00:11.8]} 42. Be3 {[%clk 0:00:03]} 42... Nxe3+ {[%clk 0:00:11.3]}
43. Rxe3 {[%clk 0:00:03.9]} 43... Kxh6 {[%clk 0:00:11.3]} 44. Re7 {[%clk
0:00:04.8]} 44... Nd6 {[%clk 0:00:10.8]} 45. Rd7 {[%clk 0:00:04.7]} 45... Rd1
{[%clk 0:00:11]} 46. f3 {[%clk 0:00:04.1]} 46... Rd2+ {[%clk 0:00:11.1]} 47. Kh3
{[%clk 0:00:04.1]} 47... Rd5 {[%clk 0:00:10.7]} 48. g4 {[%clk 0:00:04.3]} 48...
hxg4+ {[%clk 0:00:10.9]} 49. fxg4 {[%clk 0:00:05.2]} 49... g5 {[%clk 0:00:10.7]}
50. h5 {[%clk 0:00:05.1]} 50... Rd3+ {[%clk 0:00:09.6]} 51. Kh2 {[%clk
0:00:04.5]} 51... Rd4 {[%clk 0:00:09.4]} 52. Rd8 {[%clk 0:00:04.7]} 52... f5
{[%clk 0:00:08.8]} 53. Rh8+ {[%clk 0:00:03.8]} 53... Kg7 {[%clk 0:00:08.6]} 54.
Rd8 {[%clk 0:00:04.7]} 54... fxg4 {[%clk 0:00:08]} 55. Kg2 {[%clk 0:00:05.1]}
55... Kh6 {[%clk 0:00:07.9]} 56. Rh8+ {[%clk 0:00:04.5]} 56... Kg7 {[%clk
0:00:07.9]} 57. Rd8 {[%clk 0:00:04.9]} 57... c5 {[%clk 0:00:08.2]} 58. Rd7+
{[%clk 0:00:04.9]} 58... Kh6 {[%clk 0:00:07.8]} 59. Kg1 {[%clk 0:00:04.9]} 59...
Kxh5 {[%clk 0:00:08]} 60. Rc7 {[%clk 0:00:05.8]} 60... b6 {[%clk 0:00:07.2]} 61.
Rh7+ {[%clk 0:00:05.6]} 61... Kg6 {[%clk 0:00:07.1]} 62. Rh8 {[%clk 0:00:05.8]}
62... c4 {[%clk 0:00:07.3]} 63. Rg8+ {[%clk 0:00:05.5]} 63... Kf5 {[%clk
0:00:07.2]} 64. Rd8 {[%clk 0:00:05.8]} 64... c3 {[%clk 0:00:06.9]} 65. Rf8+
{[%clk 0:00:06.2]} 65... Ke4 {[%clk 0:00:06.6]} 66. Kg2 {[%clk 0:00:07.1]} 66...
c2 {[%clk 0:00:06.8]} 67. Rf1 {[%clk 0:00:06.7]} 67... Rd1 {[%clk 0:00:06.9]}
68. Rf6 {[%clk 0:00:06.3]} 68... c1=Q {[%clk 0:00:06.9]} 69. Re6+ {[%clk
0:00:06.4]} 69... Kf5 {[%clk 0:00:06.8]} 70. Re3 {[%clk 0:00:05]} 70... Rg1+
{[%clk 0:00:06.6]} 71. Kh2 {[%clk 0:00:05.1]} 71... Qd2+ {[%clk 0:00:06.2]} 72.
Re2 {[%clk 0:00:04.4]} 72... Qxe2+ {[%clk 0:00:06.3]} 73. Kxg1 {[%clk 0:00:05]}
73... Ne4 {[%clk 0:00:06.1]} 74. Kh1 {[%clk 0:00:04.9]} 74... Nd2 {[%clk
0:00:06]} 75. Kg1 {[%clk 0:00:05.1]} 75... Nf3+ {[%clk 0:00:06.2]} 76. Kh1
{[%clk 0:00:05.6]} 76... Qh2# {[%clk 0:00:06.7]} 0-1

[Event "*** Titled Tuesday Blitz"]
[Site "Chess.com"]
[Date "2021.04.06"]
[Round "10"]
[White "Koalaskakistis"]
[Black "Abund"]
[Result "1/2-1/2"]
[WhiteElo "2594"]
[BlackElo "2727"]
[TimeControl "180+1"]
[EndTime "11:59:52 PDT"]
[Termination "Game drawn - insufficient material"]

1. Nf3 {[%clk 0:03:00.9]} 1... Nf6 {[%clk 0:03:00.1]} 2. g3 {[%clk 0:03:01.6]}
2... g6 {[%clk 0:03:00.6]} 3. Bg2 {[%clk 0:03:02.2]} 3... Bg7 {[%clk 0:03:01.4]}
4. O-O {[%clk 0:03:03.1]} 4... O-O {[%clk 0:03:01.8]} 5. c4 {[%clk 0:03:01.8]}
5... c6 {[%clk 0:03:02.1]} 6. Nc3 {[%clk 0:03:00.5]} 6... d5 {[%clk 0:03:02.6]}
7. cxd5 {[%clk 0:03:01.2]} 7... cxd5 {[%clk 0:03:03.3]} 8. d4 {[%clk 0:03:02.1]}
8... Ne4 {[%clk 0:03:03.5]} 9. Bf4 {[%clk 0:02:59.4]} 9... Bf5 {[%clk
0:03:02.7]} 10. Rc1 {[%clk 0:02:59.2]} 10... Nc6 {[%clk 0:02:57]} 11. Ne5 {[%clk
0:02:58.4]} 11... Nxc3 {[%clk 0:02:34.7]} 12. Rxc3 {[%clk 0:02:52.7]} 12... Nxe5
{[%clk 0:02:34.4]} 13. Bxe5 {[%clk 0:02:52]} 13... Bxe5 {[%clk 0:02:02.8]} 14.
dxe5 {[%clk 0:02:52.9]} 14... Be6 {[%clk 0:01:59.1]} 15. Qd4 {[%clk 0:02:52.3]}
15... Qa5 {[%clk 0:01:49.5]} 16. a3 {[%clk 0:02:32.7]} 16... Rac8 {[%clk
0:01:47.8]} 17. Rfc1 {[%clk 0:02:33]} 17... Rc4 {[%clk 0:01:23.6]} 18. Rxc4
{[%clk 0:02:29.8]} 18... dxc4 {[%clk 0:01:24.5]} 19. Bxb7 {[%clk 0:02:28]} 19...
Rd8 {[%clk 0:01:11.4]} 20. Qc3 {[%clk 0:02:27.8]} 20... Qxc3 {[%clk 0:01:06]}
21. Rxc3 {[%clk 0:02:26.6]} 21... Rd2 {[%clk 0:01:03.3]} 22. Ba6 {[%clk
0:02:24.6]} 22... Bh3 {[%clk 0:00:53.8]} 23. Rc1 {[%clk 0:01:30.1]} 23... Rxe2
{[%clk 0:00:53.7]} 24. Bxc4 {[%clk 0:01:30.6]} 24... Rxb2 {[%clk 0:00:54.2]} 25.
Bf1 {[%clk 0:01:20.5]} 25... Bf5 {[%clk 0:00:47.4]} 26. h3 {[%clk 0:00:59.5]}
26... Ra2 {[%clk 0:00:42.6]} 27. Rc3 {[%clk 0:00:59.5]} 27... Ra1 {[%clk
0:00:39.9]} 28. Kg2 {[%clk 0:00:59.7]} 28... Be4+ {[%clk 0:00:38.9]} 29. f3
{[%clk 0:01:00.1]} 29... Ra2+ {[%clk 0:00:30.8]} 30. Kg1 {[%clk 0:01:00.3]}
30... Bd5 {[%clk 0:00:30.9]} 31. Bc4 {[%clk 0:00:54.1]} 31... Bxc4 {[%clk
0:00:24.6]} 32. Rxc4 {[%clk 0:00:55]} 32... Rxa3 {[%clk 0:00:25]} 33. Kf2 {[%clk
0:00:55.7]} 33... h5 {[%clk 0:00:21.2]} 34. Rc7 {[%clk 0:00:52]} 34... Kf8
{[%clk 0:00:20.4]} 35. Rc8+ {[%clk 0:00:50.3]} 35... Kg7 {[%clk 0:00:20.6]} 36.
Rc7 {[%clk 0:00:51.2]} 36... e6 {[%clk 0:00:20.7]} 37. g4 {[%clk 0:00:44.4]}
37... hxg4 {[%clk 0:00:18.3]} 38. hxg4 {[%clk 0:00:45.3]} 38... g5 {[%clk
0:00:18.4]} 39. Kg3 {[%clk 0:00:41.4]} 39... Ra5 {[%clk 0:00:18]} 40. Rb7 {[%clk
0:00:39.6]} 40... Kg6 {[%clk 0:00:18]} 41. Rc7 {[%clk 0:00:39.4]} 41... Ra3
{[%clk 0:00:15.2]} 42. Rb7 {[%clk 0:00:38.3]} 42... Ra1 {[%clk 0:00:15.3]} 43.
Kf2 {[%clk 0:00:36.9]} 43... a5 {[%clk 0:00:14.5]} 44. Ra7 {[%clk 0:00:34.7]}
44... a4 {[%clk 0:00:14.5]} 45. Kg3 {[%clk 0:00:33.5]} 45... a3 {[%clk
0:00:14.6]} 46. Kg2 {[%clk 0:00:33.7]} 46... a2 {[%clk 0:00:14.8]} 47. Kh2
{[%clk 0:00:19.9]} 47... Kg7 {[%clk 0:00:10.2]} 48. Kg2 {[%clk 0:00:20.1]} 48...
Kf8 {[%clk 0:00:10.5]} 49. Kh2 {[%clk 0:00:20.8]} 49... Ke8 {[%clk 0:00:11]} 50.
Kg2 {[%clk 0:00:21.7]} 50... Kd8 {[%clk 0:00:11.2]} 51. Kh2 {[%clk 0:00:22.3]}
51... Kc8 {[%clk 0:00:11.7]} 52. Kg2 {[%clk 0:00:22.2]} 52... Kb8 {[%clk
0:00:12.1]} 53. Ra3 {[%clk 0:00:23.1]} 53... Kb7 {[%clk 0:00:12.4]} 54. Ra4
{[%clk 0:00:23.4]} 54... Kc7 {[%clk 0:00:12.7]} 55. Ra6 {[%clk 0:00:22.9]} 55...
Kb7 {[%clk 0:00:12.9]} 56. Ra3 {[%clk 0:00:23.8]} 56... Kb6 {[%clk 0:00:13]} 57.
Ra4 {[%clk 0:00:19.5]} 57... Kc5 {[%clk 0:00:13.1]} 58. Ra5+ {[%clk 0:00:18.6]}
58... Kb4 {[%clk 0:00:13.2]} 59. Ra8 {[%clk 0:00:18]} 59... Kc4 {[%clk
0:00:13.4]} 60. Ra4+ {[%clk 0:00:17.5]} 60... Kd5 {[%clk 0:00:13.2]} 61. Ra5+
{[%clk 0:00:17.5]} 61... Kd4 {[%clk 0:00:13.6]} 62. Kh2 {[%clk 0:00:15.7]} 62...
Ke3 {[%clk 0:00:13.5]} 63. Kg2 {[%clk 0:00:16]} 63... Kf4 {[%clk 0:00:10.1]} 64.
Ra4+ {[%clk 0:00:01.7]} 64... Kxe5 {[%clk 0:00:10]} 65. Ra5+ {[%clk 0:00:02.1]}
65... Kf4 {[%clk 0:00:09.5]} 66. Ra4+ {[%clk 0:00:01.9]} 66... Ke3 {[%clk
0:00:09.9]} 67. Re4+ {[%clk 0:00:02.6]} 67... Kd3 {[%clk 0:00:09.6]} 68. Ra4
{[%clk 0:00:03.5]} 68... f5 {[%clk 0:00:08.6]} 69. gxf5 {[%clk 0:00:04.4]} 69...
exf5 {[%clk 0:00:09.2]} 70. Ra5 {[%clk 0:00:04.6]} 70... Ke3 {[%clk 0:00:08.9]}
71. Ra3+ {[%clk 0:00:04.6]} 71... Kf4 {[%clk 0:00:08.9]} 72. Ra4+ {[%clk
0:00:04.6]} 72... Ke5 {[%clk 0:00:09.2]} 73. Ra5+ {[%clk 0:00:04.4]} 73... Kf6
{[%clk 0:00:09.8]} 74. Ra4 {[%clk 0:00:05.3]} 74... Kg6 {[%clk 0:00:09.8]} 75.
Ra6+ {[%clk 0:00:05.4]} 75... Kh5 {[%clk 0:00:10]} 76. Ra5 {[%clk 0:00:06.3]}
76... Kh4 {[%clk 0:00:09.4]} 77. Ra4+ {[%clk 0:00:06]} 77... f4 {[%clk
0:00:09.6]} 78. Ra8 {[%clk 0:00:05.7]} 78... Kh5 {[%clk 0:00:07.5]} 79. Ra5
{[%clk 0:00:05.5]} 79... Kg6 {[%clk 0:00:07.2]} 80. Ra6+ {[%clk 0:00:05.9]}
80... Kf5 {[%clk 0:00:07.3]} 81. Ra5+ {[%clk 0:00:06.5]} 81... Ke6 {[%clk
0:00:07.7]} 82. Ra6+ {[%clk 0:00:07.4]} 82... Kd5 {[%clk 0:00:07.9]} 83. Ra5+
{[%clk 0:00:07.6]} 83... Kd4 {[%clk 0:00:08.4]} 84. Ra4+ {[%clk 0:00:08.2]}
84... Kd3 {[%clk 0:00:08.7]} 85. Ra3+ {[%clk 0:00:07.6]} 85... Kc4 {[%clk
0:00:09]} 86. Ra8 {[%clk 0:00:08.5]} 86... Kd5 {[%clk 0:00:05.7]} 87. Ra5+
{[%clk 0:00:08]} 87... Ke6 {[%clk 0:00:05.9]} 88. Ra6+ {[%clk 0:00:08.4]} 88...
Kd7 {[%clk 0:00:06.3]} 89. Ra7+ {[%clk 0:00:08.8]} 89... Ke8 {[%clk 0:00:06.6]}
90. Ra8+ {[%clk 0:00:07.9]} 90... Kf7 {[%clk 0:00:07.3]} 91. Ra7+ {[%clk
0:00:08.8]} 91... Kg6 {[%clk 0:00:07.5]} 92. Ra6+ {[%clk 0:00:09.4]} 92... Kh5
{[%clk 0:00:07.7]} 93. Ra5 {[%clk 0:00:08.7]} 93... Kh6 {[%clk 0:00:07.2]} 94.
Ra6+ {[%clk 0:00:08.6]} 94... Kg7 {[%clk 0:00:07.7]} 95. Ra7+ {[%clk 0:00:09.1]}
95... Kf8 {[%clk 0:00:08.3]} 96. Ra8+ {[%clk 0:00:09.3]} 96... Ke7 {[%clk
0:00:08.9]} 97. Ra7+ {[%clk 0:00:10.2]} 97... Kd6 {[%clk 0:00:09.2]} 98. Ra6+
{[%clk 0:00:10.3]} 98... Kc5 {[%clk 0:00:09.8]} 99. Ra5+ {[%clk 0:00:10.6]}
99... Kb4 {[%clk 0:00:10.1]} 100. Ra8 {[%clk 0:00:10.3]} 100... g4 {[%clk
0:00:09.7]} 101. fxg4 {[%clk 0:00:10.5]} 101... f3+ {[%clk 0:00:09]} 102. Kxf3
{[%clk 0:00:10.8]} 102... Rf1+ {[%clk 0:00:08.2]} 103. Ke4 {[%clk 0:00:11]}
103... a1=Q {[%clk 0:00:08.8]} 104. Rxa1 {[%clk 0:00:11.7]} 104... Rxa1 {[%clk
0:00:09.5]} 105. g5 {[%clk 0:00:12.6]} 105... Ra5 {[%clk 0:00:05.8]} 106. Kf4
{[%clk 0:00:09.5]} 106... Kc4 {[%clk 0:00:06]} 107. g6 {[%clk 0:00:10.4]} 107...
Kd5 {[%clk 0:00:04.7]} 108. g7 {[%clk 0:00:09.5]} 108... Ra8 {[%clk 0:00:03.6]}
109. Kf5 {[%clk 0:00:09.9]} 109... Kd6 {[%clk 0:00:02.9]} 110. Kf6 {[%clk
0:00:10.2]} 110... Rb8 {[%clk 0:00:03.6]} 111. Kf7 {[%clk 0:00:10.7]} 111...
Rb7+ {[%clk 0:00:04]} 112. Kf6 {[%clk 0:00:10.4]} 112... Rb8 {[%clk 0:00:04.2]}
113. Kf7 {[%clk 0:00:10.7]} 113... Ra8 {[%clk 0:00:04.7]} 114. g8=Q {[%clk
0:00:10.5]} 114... Rxg8 {[%clk 0:00:05.3]} 115. Kxg8 {[%clk 0:00:11.4]} 1/2-1/2

[Event "*** Titled Tuesday Blitz"]
[Site "Chess.com"]
[Date "2021.04.06"]
[Round "11"]
[White "klimkoj"]
[Black "Lion-Al-Messi"]
[Result "1-0"]
[WhiteElo "2615"]
[BlackElo "2502"]
[TimeControl "180+1"]
[EndTime "12:02:28 PDT"]
[Termination "klimkoj won by resignation"]

1. e4 {[%clk 0:03:00.9]} 1... b6 {[%clk 0:02:49.5]} 2. d4 {[%clk 0:02:57.3]}
2... Bb7 {[%clk 0:02:50]} 3. Nc3 {[%clk 0:02:56]} 3... e6 {[%clk 0:02:49]} 4.
Nf3 {[%clk 0:02:55.5]} 4... Bb4 {[%clk 0:02:49.2]} 5. Bd3 {[%clk 0:02:54.7]}
5... Nf6 {[%clk 0:02:49.4]} 6. Qe2 {[%clk 0:02:54.1]} 6... d5 {[%clk 0:02:49.5]}
7. exd5 {[%clk 0:02:50.2]} 7... Qxd5 {[%clk 0:02:50.4]} 8. O-O {[%clk
0:02:48.9]} 8... Bxc3 {[%clk 0:02:50.3]} 9. bxc3 {[%clk 0:02:48.7]} 9... Qh5
{[%clk 0:02:51.2]} 10. Ne5 {[%clk 0:02:25.9]} 10... Qxe2 {[%clk 0:02:50.1]} 11.
Bxe2 {[%clk 0:02:26.8]} 11... O-O {[%clk 0:02:50.4]} 12. f3 {[%clk 0:02:21.8]}
12... Nbd7 {[%clk 0:02:49.8]} 13. Nxd7 {[%clk 0:02:19.7]} 13... Nxd7 {[%clk
0:02:50.7]} 14. Bf4 {[%clk 0:02:20.2]} 14... c5 {[%clk 0:02:50.2]} 15. Bb5
{[%clk 0:02:17]} 15... Nf6 {[%clk 0:02:49.3]} 16. dxc5 {[%clk 0:02:15.6]} 16...
bxc5 {[%clk 0:02:48.4]} 17. c4 {[%clk 0:02:15.5]} 17... Rad8 {[%clk 0:02:43.6]}
18. Rad1 {[%clk 0:02:14]} 18... a6 {[%clk 0:02:37.4]} 19. Ba4 {[%clk 0:02:12.9]}
19... h6 {[%clk 0:02:34.1]} 20. Bd6 {[%clk 0:02:11]} 20... Rxd6 {[%clk
0:02:29.9]} 21. Rxd6 {[%clk 0:02:11.9]} 1-0

[Event "*** Titled Tuesday Blitz"]
[Site "Chess.com"]
[Date "2021.04.06"]
[Round "11"]
[White "scarabee43"]
[Black "Sanan_Sjugirov"]
[Result "0-1"]
[WhiteElo "2652"]
[BlackElo "2878"]
[TimeControl "180+1"]
[EndTime "12:02:40 PDT"]
[Termination "Sanan_Sjugirov won by checkmate"]

1. d4 {[%clk 0:03:00.9]} 1... Nf6 {[%clk 0:03:00]} 2. c4 {[%clk 0:03:01.3]} 2...
c5 {[%clk 0:03:00.6]} 3. d5 {[%clk 0:03:00.6]} 3... e6 {[%clk 0:03:01]} 4. Nc3
{[%clk 0:03:00.3]} 4... exd5 {[%clk 0:03:01.6]} 5. cxd5 {[%clk 0:03:00.4]} 5...
d6 {[%clk 0:03:02.2]} 6. e4 {[%clk 0:03:00.5]} 6... g6 {[%clk 0:03:02.5]} 7. Nf3
{[%clk 0:03:00.7]} 7... Bg7 {[%clk 0:03:02.7]} 8. Be2 {[%clk 0:03:01.4]} 8...
O-O {[%clk 0:03:03]} 9. O-O {[%clk 0:03:01.8]} 9... Re8 {[%clk 0:02:58.3]} 10.
Nd2 {[%clk 0:03:01.9]} 10... Nbd7 {[%clk 0:02:51.6]} 11. a4 {[%clk 0:02:58.3]}
11... Ne5 {[%clk 0:02:42.3]} 12. f4 {[%clk 0:02:54.8]} 12... Neg4 {[%clk
0:02:40.9]} 13. Nc4 {[%clk 0:02:40.2]} 13... Nxe4 {[%clk 0:02:40.7]} 14. Bxg4
{[%clk 0:02:40.5]} 14... Bd4+ {[%clk 0:02:39.1]} 15. Kh1 {[%clk 0:02:39.6]}
15... Bxg4 {[%clk 0:02:36.7]} 16. Qd3 {[%clk 0:02:32]} 16... Nxc3 {[%clk
0:02:28.5]} 17. bxc3 {[%clk 0:02:32]} 17... Be2 {[%clk 0:02:29.1]} 18. Qh3
{[%clk 0:02:27]} 18... Bxf1 {[%clk 0:02:25.4]} 19. cxd4 {[%clk 0:02:27.3]} 19...
Bxc4 {[%clk 0:02:25.5]} 20. Bb2 {[%clk 0:02:27.1]} 20... Re2 {[%clk 0:02:22.1]}
21. Bc3 {[%clk 0:02:26.1]} 21... Bxd5 {[%clk 0:02:22.4]} 22. Rg1 {[%clk
0:02:22.4]} 22... c4 {[%clk 0:02:22.6]} 23. f5 {[%clk 0:02:20.5]} 23... Qg5
{[%clk 0:02:21.9]} 24. fxg6 {[%clk 0:02:20.8]} 24... hxg6 {[%clk 0:02:21.6]} 25.
Bb4 {[%clk 0:02:20.4]} 25... Rae8 {[%clk 0:02:21.2]} 26. Bxd6 {[%clk 0:02:20.9]}
26... Rxg2 {[%clk 0:02:20.4]} 27. Rxg2 {[%clk 0:02:19.4]} 27... Re1# {[%clk
0:02:19.9]} 0-1

[Event "*** Titled Tuesday Blitz"]
[Site "Chess.com"]
[Date "2021.04.06"]
[Round "11"]
[White "laskerisalive"]
[Black "Willhaven3"]
[Result "0-1"]
[WhiteElo "2351"]
[BlackElo "2499"]
[TimeControl "180+1"]
[EndTime "12:02:58 PDT"]
[Termination "Willhaven3 won by resignation"]

1. e4 {[%clk 0:03:00.9]} 1... c5 {[%clk 0:02:59]} 2. Nc3 {[%clk 0:02:55.6]} 2...
Nc6 {[%clk 0:02:58.5]} 3. Nge2 {[%clk 0:02:54.5]} 3... d6 {[%clk 0:02:56.2]} 4.
d4 {[%clk 0:02:51.9]} 4... cxd4 {[%clk 0:02:57.1]} 5. Nxd4 {[%clk 0:02:51.6]}
5... Nf6 {[%clk 0:02:58]} 6. Be2 {[%clk 0:02:49.8]} 6... e5 {[%clk 0:02:57.4]}
7. Nb3 {[%clk 0:02:47.6]} 7... Be7 {[%clk 0:02:56.8]} 8. O-O {[%clk 0:02:47.1]}
8... O-O {[%clk 0:02:57.3]} 9. f4 {[%clk 0:02:44.5]} 9... a5 {[%clk 0:02:55.5]}
10. a4 {[%clk 0:02:42.6]} 10... Nb4 {[%clk 0:02:54.8]} 11. Kh1 {[%clk
0:02:41.3]} 11... Be6 {[%clk 0:02:51.9]} 12. f5 {[%clk 0:02:40.1]} 12... Bd7
{[%clk 0:02:52]} 13. Bb5 {[%clk 0:02:32.3]} 13... Bc6 {[%clk 0:02:51.4]} 14. Qe2
{[%clk 0:02:31.9]} 14... h6 {[%clk 0:02:42.3]} 15. Bxc6 {[%clk 0:02:24.5]} 15...
bxc6 {[%clk 0:02:41.5]} 16. Nd1 {[%clk 0:02:23.1]} 16... Qb6 {[%clk 0:02:27]}
17. Ne3 {[%clk 0:02:15.3]} 17... d5 {[%clk 0:02:16]} 18. exd5 {[%clk 0:02:11.3]}
18... cxd5 {[%clk 0:02:16]} 19. Ng4 {[%clk 0:02:10.1]} 19... Nxg4 {[%clk
0:02:14.1]} 20. Qxg4 {[%clk 0:02:10.3]} 20... Nxc2 {[%clk 0:02:09.6]} 0-1

[Event "*** Titled Tuesday Blitz"]
[Site "Chess.com"]
[Date "2021.04.06"]
[Round "11"]
[White "ybruned"]
[Black "kubal123"]
[Result "1/2-1/2"]
[WhiteElo "2339"]
[BlackElo "2233"]
[TimeControl "180+1"]
[EndTime "12:03:08 PDT"]
[Termination "Game drawn by agreement"]

1. b3 {[%clk 0:03:00.9]} 1... e6 {[%clk 0:03:00.9]} 2. Bb2 {[%clk 0:03:00.3]}
2... d5 {[%clk 0:03:01.8]} 3. e3 {[%clk 0:03:00.8]} 3... Nf6 {[%clk 0:03:01.1]}
4. d4 {[%clk 0:03:01.3]} 4... Be7 {[%clk 0:03:01.3]} 5. Nf3 {[%clk 0:03:01.9]}
5... O-O {[%clk 0:03:01.9]} 6. Be2 {[%clk 0:03:02.4]} 6... c5 {[%clk 0:03:02.4]}
7. O-O {[%clk 0:03:02.8]} 7... Nc6 {[%clk 0:03:03]} 8. Nbd2 {[%clk 0:03:02.7]}
8... cxd4 {[%clk 0:03:03.4]} 9. Nxd4 {[%clk 0:03:02.7]} 9... Bd7 {[%clk
0:03:02.7]} 10. c4 {[%clk 0:03:02.8]} 10... Nxd4 {[%clk 0:03:02.4]} 11. Bxd4
{[%clk 0:03:02.3]} 11... Bc6 {[%clk 0:03:02.7]} 12. Bf3 {[%clk 0:03:02.9]} 12...
Rc8 {[%clk 0:02:59.1]} 13. Qb1 {[%clk 0:02:52.1]} 13... dxc4 {[%clk 0:02:55.3]}
14. Bxc6 {[%clk 0:02:50.8]} 14... Rxc6 {[%clk 0:02:56.2]} 15. Nxc4 {[%clk
0:02:51.2]} 15... Qd5 {[%clk 0:02:37.2]} 16. Qb2 {[%clk 0:02:47.2]} 16... Rfc8
{[%clk 0:02:32.8]} 17. Rac1 {[%clk 0:02:37.4]} 17... a6 {[%clk 0:02:15.2]} 18.
Ne5 {[%clk 0:02:34.6]} 18... Rxc1 {[%clk 0:02:14.6]} 19. Rxc1 {[%clk 0:02:35.2]}
19... Qd8 {[%clk 0:02:09]} 20. h3 {[%clk 0:02:29.1]} 20... Ne8 {[%clk
0:02:08.2]} 21. Rxc8 {[%clk 0:01:59.9]} 21... Qxc8 {[%clk 0:02:07.2]} 22. Qc3
{[%clk 0:01:59.7]} 22... Qxc3 {[%clk 0:02:07]} 23. Bxc3 {[%clk 0:02:00.3]}
1/2-1/2

[Event "*** Titled Tuesday Blitz"]
[Site "Chess.com"]
[Date "2021.04.06"]
[Round "11"]
[White "Louis64"]
[Black "reniite"]
[Result "0-1"]
[WhiteElo "2238"]
[BlackElo "2071"]
[TimeControl "180+1"]
[EndTime "12:03:23 PDT"]
[Termination "reniite won by resignation"]

1. e4 {[%clk 0:03:00.9]} 1... e5 {[%clk 0:02:53.3]} 2. Nf3 {[%clk 0:02:59.5]}
2... Nc6 {[%clk 0:02:52.4]} 3. d4 {[%clk 0:02:59.2]} 3... exd4 {[%clk
0:02:50.1]} 4. Nxd4 {[%clk 0:02:59.8]} 4... Nf6 {[%clk 0:02:49.7]} 5. Nc3 {[%clk
0:03:00]} 5... Bb4 {[%clk 0:02:38.6]} 6. Nxc6 {[%clk 0:02:59.7]} 6... bxc6
{[%clk 0:02:32.6]} 7. Bd3 {[%clk 0:02:59.1]} 7... d5 {[%clk 0:02:32.2]} 8. exd5
{[%clk 0:03:00]} 8... cxd5 {[%clk 0:02:33.1]} 9. O-O {[%clk 0:02:59.5]} 9... O-O
{[%clk 0:02:33.7]} 10. h3 {[%clk 0:02:59.6]} 10... c6 {[%clk 0:02:34.1]} 11. Qf3
{[%clk 0:02:59.7]} 11... Rb8 {[%clk 0:02:18.7]} 12. Bf4 {[%clk 0:02:58.2]} 12...
Bd6 {[%clk 0:02:18.1]} 13. b3 {[%clk 0:02:58.2]} 13... Qc7 {[%clk 0:02:12.3]}
14. Ne2 {[%clk 0:02:56.9]} 14... c5 {[%clk 0:02:08.2]} 15. Rad1 {[%clk
0:02:50.5]} 15... Bb7 {[%clk 0:01:49.9]} 16. Bxd6 {[%clk 0:02:34.5]} 16... Qxd6
{[%clk 0:01:49.8]} 17. Qf5 {[%clk 0:02:34.5]} 17... Rfe8 {[%clk 0:01:41.4]} 18.
Nf4 {[%clk 0:02:34]} 18... Re5 {[%clk 0:01:21.3]} 19. Rfe1 {[%clk 0:02:24.8]}
19... Rxf5 {[%clk 0:01:18.5]} 20. Bxf5 {[%clk 0:02:24.9]} 20... Qxf4 {[%clk
0:01:17.2]} 0-1

[Event "*** Titled Tuesday Blitz"]
[Site "Chess.com"]
[Date "2021.04.06"]
[Round "11"]
[White "PolandHussars"]
[Black "mac0504"]
[Result "0-1"]
[WhiteElo "2608"]
[BlackElo "2541"]
[TimeControl "180+1"]
[EndTime "12:03:35 PDT"]
[Termination "mac0504 won by checkmate"]

1. e4 {[%clk 0:03:00.9]} 1... c6 {[%clk 0:03:00.4]} 2. d4 {[%clk 0:02:57.4]}
2... d5 {[%clk 0:03:01.3]} 3. e5 {[%clk 0:02:57.9]} 3... c5 {[%clk 0:03:01.1]}
4. c4 {[%clk 0:02:57.8]} 4... Nc6 {[%clk 0:02:51.6]} 5. Nf3 {[%clk 0:02:58.1]}
5... Bg4 {[%clk 0:02:47.7]} 6. cxd5 {[%clk 0:02:50.7]} 6... Nxd4 {[%clk
0:02:39.6]} 7. Nxd4 {[%clk 0:02:40.9]} 7... Bxd1 {[%clk 0:02:32.3]} 8. Bb5+
{[%clk 0:02:39.4]} 8... Qd7 {[%clk 0:02:32.5]} 9. e6 {[%clk 0:02:33.2]} 9...
fxe6 {[%clk 0:01:30.3]} 10. dxe6 {[%clk 0:02:31.8]} 10... Qxb5 {[%clk
0:01:28.3]} 11. Nxb5 {[%clk 0:02:29.7]} 11... O-O-O {[%clk 0:01:29]} 12. Bf4
{[%clk 0:02:19.7]} 12... b6 {[%clk 0:01:25.1]} 13. Nxa7+ {[%clk 0:02:03.2]}
13... Kb7 {[%clk 0:01:25]} 14. Nb5 {[%clk 0:02:03.5]} 14... Bg4 {[%clk
0:01:21.5]} 15. Nc7 {[%clk 0:01:54.6]} 15... Rd1# {[%clk 0:01:19.3]} 0-1